Cogmind - Beta 12 *** ADVENTURER MODE // 2023.08.17 @ 15:36:04 Player: squished Result: Destroyed by G-34 Mercenary with Small Laser Performance ------------- Evolutions (0) 0 Regions Visited (2) 400 Robots Destroyed (16) 80 Value Destroyed (461) 461 Prototype IDs (0) 0 Alien Tech Used (0) 0 Bonus (100) 100 TOTAL SCORE: 1041 Bonus ------- Follower Combat Kills 100 Cogmind --------- Core Integrity 0/250 Matter 256/300 Energy 100/100 System Corruption 0% Temperature Cool (12) Movement Core (100) Ox1 Location -10/Mines Parts ------- > --- POWER (1) -------- (None) > --- PROPULSION (2) --- (None) > --- UTILITY (2) ------ Small Storage Unit > --- WEAPON (2) ------- (None) > --- INVENTORY (8) ---- Ion Engine Light Treads Light Treads Aluminum Leg Heat Sink Light Assault Rifle Grenade Launcher Peak State ------------ > --- POWER ------------ Light Nuclear Core > --- PROPULSION ------- Aluminum Leg Aluminum Leg > --- UTILITY ---------- Small Storage Unit Improved Terrain Scanner > --- WEAPON ----------- Light Assault Rifle Light Assault Rifle > --- INVENTORY -------- Ion Engine Light Treads Light Treads Heat Sink Light Assault Rifle Grenade Launcher [Rating: 11] Favorites ----------- Power Light Nuclear Core Engine Light Ion Engine Power Core Light Nuclear Core Propulsion Aluminum Leg Treads Light Treads Leg Aluminum Leg Utility Small Storage Unit Device Improved Terrain Scanner Storage Small Storage Unit Processor Targeting Computer Weapon Light Assault Rifle Ballistic Gun Light Assault Rifle Build | -11 -10 -10 ------- Run | Jun Mat Min Slots Evolved . | . . . Power . | . . . Propulsion . | . . . Utility . | . . . Weapon . | . . . Parts Attached 17 | 7 3 7 Power 5 | 1 1 3 Engine 1 | 1 . . Core 4 | . 1 3 Reactor . | . . . Propulsion 7 | 3 1 3 Treads 1 | 1 . . Leg 6 | 2 1 3 Wheel . | . . . Hover . | . . . Flight . | . . . Utility 3 | 1 1 1 Device 1 | . . 1 Storage 1 | 1 . . Processor 1 | . 1 . Hackware . | . . . Protection . | . . . Artifact . | . . . Weapon 2 | 2 . . Energy Gun . | . . . Energy Cannon . | . . . Ballistic Gun 2 | 2 . . Ballistic Cannon . | . . . Launcher . | . . . Special Weapon . | . . . Impact Weapon . | . . . Slashing Weapon . | . . . Piercing Weapon . | . . . Special Melee Weapon . | . . . Unidentified Prototypes . | . . . Parts Lost 7 | . . 7 Power 2 | . . 2 Propulsion 2 | . . 2 Utility 1 | . . 1 Weapon 2 | . . 2 Highest Loss Streak 6 | . . 6 To Critical Strikes . | . . . Average Slot Usage (%) 97 | . 94 98 Engine 2 | . 7 . Core 11 | . 6 13 Leg 28 | . 28 28 Device 5 | . . 7 Storage 14 | . 14 14 Processor 7 | . 8 6 Ballistic Gun 27 | . 28 27 Naked Turns . | . . . Heaviest Build 13 | 10 12 13 Greatest Support 20 | 20 20 20 Greatest Overweight (x) . | . . . Average Overweight (x) . | . . . Largest Inventory Capacity 8 | 8 8 8 Average Capacity 7 | 6 8 8 Most Carried 8 | 4 6 8 Average Carried 5 | 2 5 6 Final Capacity 8 | 8 8 8 Final Carried 7 | 4 6 7 Class Distribution -------------------- 84% | Mutant 15% | Scavenger-Mutant Dominant Class ---------------- Mutant | -10/Materials Mutant | -10/Mines Resources | -11 -10 -10 ----------- Run | Jun Mat Min Matter Collected 414 | 234 105 75 Remotely . | . . . Salvage Created 611 | . 215 396 Parts 35 | . 17 18 Haulers Intercepted 1 | . 1 . Recyclers Shooed . | . . . Parts Field Recycled . | . . . Retrieved Matter . | . . . Parts Self-Destructed . | . . . Prevented . | . . . Kills | -11 -10 -10 ------- Run | Jun Mat Min Combat Hostiles Destroyed 14 | . 5 9 Guns 14 | . 5 9 Classes Destroyed 4 | . 4 . Hauler 1 | . 1 . Watcher 1 | . 1 . Swarmer 3 | . 3 . Grunt 11 | . 2 9 Best Kill Streak 3 | . 3 3 Combat Bots Only 3 | . 3 3 Max Kills in Single Turn 2 | . 1 2 Gunslinging 1 | . . 1 Exploded . | . . . Melee . | . . . Uniques/NPCs Destroyed . | . . . Combat | -11 -10 -10 -------- Run | Jun Mat Min Damage Taken 953 | . 172 781 Core 255 | . 49 206 Absorbed by Shields . | . . . Core Remaining (%) 100 | 100 . . Volleys Fired 72 | . 22 50 Largest 2 | . 2 2 Hottest 40 | . 40 40 Shots Fired 128 | . 44 84 Gun 128 | . 44 84 Cannon . | . . . Launcher . | . . . Special . | . . . Kinetic 128 | . 44 84 Thermal . | . . . Explosive . | . . . Electromagnetic . | . . . Robot Hit Streak 17 | . 8 17 Robot Miss Streak 1 | . 1 1 Penetration Max . | . . . Secondary Targets 2 | . 1 1 Max Gunslinging Chain 1 | . 1 1 Shots Hit Robots 109 | . 35 74 Core Hits 38 | . 16 22 Critical Kills . | . . . Critical Parts Destroyed 1 | . . 1 Critical Strikes 1 | . . 1 Destroy 1 | . . 1 Melee Attacks . | . . . Impact . | . . . Slashing . | . . . Piercing . | . . . Sneak Attacks . | . . . Combat Hostiles . | . . . Follow-up Attacks . | . . . Damage Inflicted 904 | . 283 621 Guns 896 | . 275 621 Cannons . | . . . Explosions . | . . . Melee . | . . . Ramming 8 | . 8 . Kinetic 896 | . 275 621 Thermal . | . . . Explosive . | . . . Electromagnetic . | . . . Impact . | . . . Slashing . | . . . Piercing . | . . . Highest Corruption . | . . . Average Corruption . | . . . Corruption Purged . | . . . Corruption Blocked . | . . . Overload Shots . | . . . Overflow Damage . | . . . Projectiles . | . . . Explosions . | . . . Melee . | . . . Knockbacks . | . . . Impact . | . . . Kinetic . | . . . Secondary . | . . . Self-Inflicted Damage . | . . . Shots . | . . . Rammed . | . . . Targets Rammed 1 | . 1 . Kicked 1 | . 1 . Crushed . | . . . Highest Temperature 61 | . 20 61 Average Temperature 21 | . 7 25 Received Heat Transfer 666 | . 102 564 Siege Activations . | . . . Robots Corrupted . | . . . Combat Hostiles . | . . . Parts Fried . | . . . Impact Corruptions . | . . . Robots Melted . | . . . Combat Hostiles . | . . . Parts Melted . | . . . Heat Transferred . | . . . Parts Sabotaged . | . . . Parts Stolen . | . . . Parts Stripped . | . . . Power Chain Reactions . | . . . Missiles Intercepted . | . . . Alert | -11 -10 -10 ------- Run | Jun Mat Min Peak Influence 179 | . 179 152 Initial 58 | . . 58 Average 69 | . 99 65 Maximum Alert Level . | . . . Low Security (%) 100 | 100 100 100 Level 1 . | . . . Level 2 . | . . . Level 3 . | . . . Level 4 . | . . . Level 5 . | . . . High Security . | . . . Max Security . | . . . Squads Dispatched . | . . . Investigation . | . . . Extermination . | . . . Reinforcement . | . . . Assault . | . . . Garrison . | . . . Intercept . | . . . Searches Triggered . | . . . Construction Impeded . | . . . Haulers Reinforced . | . . . Active Scanning Responses . | . . . Cargo Convoy Interrupts . | . . . Stealth | -11 -10 -10 --------- Run | Jun Mat Min Distress Signals 2 | . 1 1 Communications Jammed . | . . . Distress Signals . | . . . Times Spotted 26 | . 11 15 Peak Tracking Total 4 | . 4 4 Tactical Retreats 2 | . 1 1 Traps | -11 -10 -10 ------- Run | Jun Mat Min Traps Triggered . | . . . Indirectly . | . . . Trap Hack Attempts . | . . . Triggered . | . . . Disarmed . | . . . Reprogrammed . | . . . Reused . | . . . Traps Extracted . | . . . Installed . | . . . Triggered . | . . . Machines | -11 -10 -10 ---------- Run | Jun Mat Min Machines Disabled . | . . . Max in Single Turn . | . . . Machines Repaired . | . . . Machines Sabotaged . | . . . Overloaded Fab Kills . | . . . Hacking | -11 -10 -10 --------- Run | Jun Mat Min Machines Accessed 2 | . 2 . Terminals 2 | . 2 . Fabricators . | . . . Repair Stations . | . . . Recycling Units . | . . . Scanalyzers . | . . . Garrison Access . | . . . Total Hacks 5 | . 5 . Successful 3 | . 3 . Failed 2 | . 2 . Catastrophic . | . . . Database Lockouts . | . . . Manual . | . . . Terminals 5 | . 5 . Fabricators . | . . . Repair Stations . | . . . Recycling Units . | . . . Scanalyzers . | . . . Garrison Access . | . . . Terminal Hacks 3 | . 3 . Record 2 | . 2 . Alert Level 1 | . 1 . Fabricator Hacks . | . . . Repair Station Hacks . | . . . Recycling Unit Hacks . | . . . Scanalyzer . | . . . Garrison Access Hacks . | . . . Unauthorized Hacks . | . . . Terminals . | . . . Fabricators . | . . . Repair Stations . | . . . Recycling Units . | . . . Scanalyzers . | . . . Garrison Access . | . . . Data Cores Recovered . | . . . Used . | . . . Hacking Detections 1 | . 1 . Full Trace Events . | . . . Feedback Events . | . . . Feedback Blocked . | . . . Robot Schematics Acquired . | . . . Robots Built . | . . . Authchips . | . . . Time . | . . . Total Robot Build Rating . | . . . Part Schematics Acquired . | . . . Parts Built . | . . . Authchips . | . . . Time . | . . . Total Part Build Rating . | . . . Parts Repaired . | . . . Time . | . . . Parts Recycled . | . . . Recycled Matter . | . . . Retrieved Matter . | . . . Retrieved Components . | . . . Parts Scanalyzed . | . . . Part Schematics Acquired . | . . . Parts Damaged . | . . . Bothacking | -11 -10 -10 ------------ Run | Jun Mat Min Used RIF Installer . | . . . Robots Hacked . | . . . Non-combat . | . . . Combat . | . . . Robot Hacks Applied . | . . . Relay Couplers Released . | . . . Fabnet Peak Effective % . | . . . Robots Rewired . | . . . Allies Hacked . | . . . Hacks Repelled . | . . . Allies | -11 -10 -10 -------- Run | Jun Mat Min Total Allies 3 | . . 3 Largest Group 3 | . . 3 Highest-Rated Group 40 | . . 40 Highest-Rated Ally 16 | . . 16 Total Orders 1 | . . 1 FOLLOW 1 | . . 1 Ally Attacks 28 | . . 28 Total Damage 349 | . . 349 Kills 5 | . . 5 Allies Corrupted . | . . . Allies Melted . | . . . Intel | -11 -10 -10 ------- Run | Jun Mat Min Robot Analysis Total . | . . . Derelict Logs Recovered . | . . . Drone Launches . | . . . Drone Recoveries . | . . . Exploration | -11 -10 -10 ------------- Run | Jun Mat Min Turns Passed 1117 | 89 298 730 Spaces Moved 503 | 61 171 271 Core 4 | 4 . . Treads 6 | 6 . . Legs 493 | 51 171 271 Wheels . | . . . Hover . | . . . Flight . | . . . Fastest Speed 50 | 50 120 120 Average Speed 119 | 119 120 120 Slowest Speed 160 | 160 120 120 Overloaded Moves . | . . . Propulsion Burnouts . | . . . Robots Hopped . | . . . Cave-ins Triggered . | . . . Exploration Rate (%) 28 | 5 26 53 Regions Visited 2 Branch Regions 1 Pre-discovered Areas 1 | . . 1 Known Exits Taken . | . . . Unknown Exits Taken 2 | 1 1 . Scrap Searched 1 | . . 1 Spaces Dug . | . . . Terrain Destroyed . | . . . Melee . | . . . Projectile . | . . . AOE . | . . . Terrain Rammed . | . . . Walls Destroyed . | . . . Machines Disabled . | . . . Actions | -11 -10 -10 --------- Run | Jun Mat Min Total 910 | 73 228 609 Wait 304 | 2 28 274 Move 501 | 60 170 271 Hop . | . . . Pick Up 9 | 4 2 3 Fast Attach 8 | 6 1 1 Attach 2 | . . 2 Detach 2 | . . 2 Swap 7 | 1 2 4 Drop 4 | . 2 2 Fire 72 | . 22 50 Melee . | . . . Ram . | . . . Kick 1 | . 1 . Crush . | . . . Escape Stasis . | . . . Rewire . | . . . Trap . | . . . Miscellaneous . | . . . Route ------- -11/Junkyard -10/Materials (discovered 2 exits: [*Mat] / [*Min]) -10/Mines History --------- Turn | Location | Event 13 | -11/Junkyard | Discovered new exit (range 16) 90 | -11/Junkyard | Entered Materials 306 | -10/Materials | Build established: Mutant 317 | -10/Materials | Discovered new exit (range 16) 328 | -10/Materials | Discovered new exit (range 14) 388 | -10/Materials | Entered Mines 389 | -10/Mines | Learned location of Storage (-7) 415 | -10/Mines | Assisted by bots powering up and referring to "LRC-V3" 541 | -10/Mines | Excavation squad dispatched 541 | -10/Mines | A large section of the Mines collapsed 791 | -10/Mines | Excavation squad dispatched 917 | -10/Mines | Core integrity fell below 50% 1041 | -10/Mines | Excavation squad dispatched 1102 | -10/Mines | Core integrity fell below 20% 1118 | -10/Mines | Destroyed by G-34 Mercenary with Small Laser Last Messages --------------- 00942_ K-01 Serf collects debris. K-01 Serf collects debris. ALERT: Derelict activity in mines confirmed. Dispatching additional escorted excavation squad. G-34 Mercenary destroyed. Lgt. Assault Rifle destroyed. Lgt. Nuclear Core destroyed. G-47 Trooper destroyed. Imp. Terrain Scanner destroyed. G-34 Mercenary destroyed. Aluminum Leg destroyed. Lgt. Assault Rifle destroyed. Aluminum Leg destroyed. [Achievement: First Step to Greatness] The achievement interface (ESC then open Records) offers an effective way to explore all of your earned achievements as well as seek out new goals for future runs. Important note for Steam players: Cogmind player global achievement rates displayed by Steam are all significantly underreported, in some cases by a huge margin, due to how they are calculated by Valve. Map ----- +----------------------------------------------------+ | | | | | ????????????????????????#?????#???#?#???#????????? | | ??????????????#?????????######?????????#?#???????? | | ?????????#####?????#?#?## " ##???#??????#???????? | | ????????## ##??#???#?# " "#????????#???###??#? | | ???????## #????????# #????#??????## ##??? | | ??????## #???????## #???#??????### #??? | | ??????# ##????### ##??????###### #??? | | ??????# ###### ##?????## ## ##??? | | ####???# " " " "##?#??# #?#?? | | #????# " "##??## ##?#?? | | #?????# " = * %#### %! ##??#?? | | # ####### % *% %"% " % [[%* ##??#?# | | # ! % % ""%[ *==%! ###?#??? | | # ## " *%= % %* ## #?#????? | | ######### #### " #### #??????? | | #???????# ##??## ## ## #??# ##?????# | | #??????# %##???## ### ### #### ##?????? | | #?????## #????? ## #?## ##?### ##?#??? | | ?????## ###?## ????## ##????# ##???? | | ????## ##???## ######## ##???## #???? | | ????## #?????# #?# =%= #?#?# #??#? | | ##???#?# ##????# $### [!% ##??## ###?#? | | ##????? %##????# ### = ###??######????? | | #???? ## #??#??#*g%=@ ##??##??##?????? | | #???# ??# #??# g ### """ ##?#??#????#???? | | ##??#??## #?## ## #?# """ #??????????????? | | # #?????? ?????# #?# """ #???#??#???????? | | # #??????#####??## #?# #??????????????? | | #???????????????#??#?###########?#??#???##???? | | ##??????????????????#?#????#??#???????????????? | | ##????????#??????????????????????##?#??????????# | | #?????####?##????#??? ?????????????????????????? | | ####### ##???????##??????????#????????????????? | | ##?#?????????? ??????????????????????? | | ######?#?? ?????????????????????????? | | ### ##???? ?? ???????????????????????? | | ##?## ##???????????? ?????????????????? | | #???# #??? ??????????#???????????????? | | ????## #?#? ?#?#???????????????????? | | ?????#### #??????????????????????????????? | | ????????## ##??????????????????????????????? | | ?????????# #???????????????????????????????? | | ???####### ##???????????????????????????????? | | ???# ##????????????????????????????????? | | ???# ##?????????????????????????????????? | | ???# ##### ##??????????????????????????????????? | | ???# #???####???????????????????????????????????? | | ???# ##?????????????????????????????????????????? | +----------------------------------------------------+ Best States ------------- Heat Dissipation 25 Energy Generation 14 Energy Capacity 160 Matter Stores 300 Matter Capacity 300 Sight Range 16 Terrain Scan Range 16 Terrain Scan Density 10 Resistance: KI 20 Resistance: TH 20 Resistance: EX 20 Resistance: EM 20 Resistance: I 20 Resistance: S 20 Resistance: P 20 Evasion (%) 55 Targeting Accuracy 5 Recoil Reduction 1 Offensive Hacking 10 Item Schematics ----------------- None Robot Schematics ------------------ None Fabricated ------------ Nothing Alien Tech Used ----------------- None Achievements -------------- First Step to Greatness Challenges ------------ None Game ------ Seed RagnarokEnergyReactor Manual? 0 Play Time 00:54:19 Cumulative 1.7 hours Start 2023.08.14 @ 00:20:22 End 2023.08.17 @ 15:36:04 Sessions 4 Manual Loads 0 Difficulty Adventurer Special Mode None Game No. 4 Rogue 0 Adventurer 4 Explorer 0 Win Type - Total 0 Types 0/0/0/0/0/0/0/0/0 Lore% 2 Gallery% 2 Achievement% 6 Wizard Run 0 Options --------- ASCII 0 Keyboard 1 Movement Numpad Keybinds 0 Fullscreen 1 Font 18/X11Bold Map View 76x50 Tactical HUD 0 Map Filters NONE Filters NONE Steam 1 RUN: a42ff138-b6c1-4329-8663-9cd0853fa973